bitfinex/quotes_ETHUSD_20241101
["timestamp","ask_amount","ask_price","bid_price","bid_amount"]
[1730459158866,3.96512,2522.0,2521.7,0.768]
[1730459159080,3.96512,2522.0,2521.8,0.08227825]
[1730459159428,7.93005,2522.1,2521.7,4.73357]
[1730459159652,3.96501,2522.1,2521.8,0.08227825]
[1730459159853,3.96501,2522.1,2521.7,4.73354]
[1730459160153,7.93006,2522.1,2521.8,0.08227825]
[1730459160389,7.93006,2522.1,2521.7,0.768]
[1730459160583,3.9651,2522.0,2521.9,0.08221837]
[1730459160783,3.9651,2522.0,2521.8,0.08227825]
[1730459160986,3.9651,2522.0,2521.9,0.08221837]
[1730459161387,3.9651,2522.0,2521.7,0.768]
[1730459161692,3.9651,2522.0,2521.8,0.08227825]
[1730459161909,3.9651,2522.0,2521.7,0.768]
[1730459162077,3.9651,2522.0,2521.9,0.08221837]
[1730459162280,3.9651,2522.0,2521.7,0.768]
[1730459162484,3.9651,2522.0,2521.9,0.08221837]
[1730459162784,3.9651,2522.0,2521.7,0.768]
[1730459163109,3.9651,2522.0,2521.8,0.08227825]
[1730459163259,3.9651,2522.0,2521.7,0.768]
[1730459163590,3.9651,2522.0,2521.8,0.08227825]
[1730459163806,6.29616647,2521.9,2521.8,0.08227825]
[1730459163955,3.96557,2521.7,2521.6,38.0]
[1730459164152,5.77957647,2521.7,2521.6,38.0]
[1730459165092,3.96557,2521.7,2521.6,38.0]
[1730459166593,3.96544,2521.8,2521.6,38.787]
[1730459166985,3.96557,2521.7,2521.6,38.787]
[1730459168681,3.96557,2521.7,2521.6,38.0]
[1730459172080,5.77957647,2521.7,2521.6,38.0]
[1730459172285,6.80576812,2521.7,2521.6,38.0]
[1730459172485,6.80576812,2521.7,2521.6,38.08241088]
[1730459173403,10.32266812,2521.7,2521.6,38.08241088]
[1730459173573,12.13667459,2521.7,2521.6,38.08241088]
[1730459174219,12.13667459,2521.7,2520.9,0.2]
[1730459174220,3.96667,2521.0,2520.9,0.2]
[1730459174386,9.29757647,2521.0,2520.9,0.2]
[1730459219467,8.78067647,2521.0,2520.9,0.2]
[1730459222153,3.96667,2521.0,2520.9,0.9999]
[1730459222354,5.78067647,2521.0,2520.9,1.05711745]
[1730459223343,8.78067647,2521.0,2520.9,1.05711745]
[1730459223579,8.78067647,2521.0,2520.9,0.9999]
[1730459226346,8.78067647,2521.0,2520.9,1.05711745]
[1730459227046,6.96667,2521.0,2520.9,1.05711745]
[1730459227878,6.96667,2521.0,2520.9,0.9999]
[1730459228084,6.96667,2521.0,2520.9,1.05711745]
[1730459229087,4.483,2521.4,2521.0,0.8119]
[1730459229088,3.96636,2521.2,2521.0,0.8119]
[1730459229245,3.96652,2521.1,2521.0,0.8119]
[1730459229589,5.78052647,2521.1,2521.0,0.8119]
[1730459230784,3.96652,2521.1,2521.0,0.8119]
[1730459231146,5.78052647,2521.1,2521.0,0.8119]
[1730459232468,5.78052647,2521.1,2521.0,0.86904729]
[1730459233481,3.96652,2521.1,2521.0,0.86904729]
[1730459240681,1.81400647,2521.5,2521.0,0.86904729]
[1730459240920,3.0,2521.3,2521.0,0.8119]
[1730459241202,6.96622,2521.3,2521.1,0.05692872]
[1730459241380,8.78022647,2521.3,2521.0,0.8119]
[1730459241568,8.78022647,2521.3,2521.2,0.05686881]
[1730459241765,3.96606,2521.4,2521.0,3.96665]
[1730459241970,3.96628,2521.3,2521.2,0.05686881]
[1730459242207,3.96628,2521.3,2521.1,0.81641336]
[1730459242396,5.78006647,2521.4,2521.2,0.05685345]
[1730459242593,3.96606,2521.4,2521.2,0.05685345]
[1730459243109,9.74620647,2521.4,2521.2,0.05685345]
[1730459243433,3.9662,2521.3,2521.2,0.05685345]
[1730459244116,3.9662,2521.3,2521.1,0.7595]
[1730459244277,3.9662,2521.3,2521.2,0.05681252]
[1730459265629,3.96644,2521.2,2520.9,0.9799]
[1730459266972,3.96644,2521.2,2520.9,0.2]
[1730459266973,3.96667,2521.0,2520.9,0.2]
[1730459271261,3.96667,2521.0,2520.9,0.25512328]
[1730459281805,3.96667,2521.0,2520.9,0.2]
[1730459283513,5.78067647,2521.0,2520.9,0.2]
[1730459283726,6.29757647,2521.0,2520.9,0.2]
[1730459284101,9.29757647,2521.0,2520.9,0.2]
[1730459286299,11.11158294,2521.0,2520.9,0.2]
[1730459286903,12.11325129,2521.0,2520.9,1e-05]
[1730459289630,12.11325129,2521.0,2519.4,0.8083]
[1730459289631,0.5169,2520.2,2519.4,0.8083]
[1730459289814,3.96866,2519.8,2519.4,0.8083]
[1730459290012,3.96874,2519.7,2519.4,0.8083]
[1730459290942,3.96866,2519.8,2519.4,0.8083]
[1730459291196,3.96866,2519.8,2519.4,1.0764833]
[1730459291337,3.96865,2519.8,2519.4,1.0764833]
[1730459291658,7.93732,2519.8,2519.4,1.0764833]
[1730459292064,3.96865,2519.8,2519.4,1.0764833]
[1730459292372,3.96865,2519.8,2519.5,0.04596211]
[1730459292734,7.9373,2519.8,2519.5,0.04596211]
[1730459292939,3.96883,2519.7,2519.5,0.04596211]
[1730459293859,3.96888,2519.6,2519.5,0.04596211]
[1730459294066,8.78288647,2519.6,2519.5,0.04596211]
[1730459294377,3.0,2519.5,2519.3,0.05952657]
[1730459294684,6.96905,2519.5,2519.3,0.05952657]
[1730459294985,3.96883,2519.7,2519.4,0.7932]
[1730459295187,3.96847,2519.9,2519.5,2.60720647]
[1730459295371,3.96793,2520.2,2519.7,1.81400647]
[1730459295570,3.96812,2520.1,2519.8,0.7932]
[1730459295736,3.968,2520.2,2519.8,0.7932]
[1730459296049,3.96774,2520.4,2519.9,0.7717]
[1730459296252,3.96774,2520.4,2520.0,1.81400647]
[1730459296458,3.96774,2520.4,2520.1,0.7717]
[1730459296779,3.96793,2520.2,2520.1,0.7717]
[1730459297084,3.96793,2520.2,2519.2,5.78340647]
[1730459297085,3.96836,2520.0,2519.7,0.7717]
[1730459297951,7.93609,2520.2,2519.7,0.7717]
[1730459298272,7.93609,2520.2,2519.7,3.63805512]
[1730459299208,3.0,2520.4,2520.0,0.7732]
[1730459299585,3.0,2520.4,2520.1,3.96809]
[1730459299774,3.0,2520.4,2520.2,0.7701]
[1730459301410,6.96765,2520.4,2520.2,0.7701]
[1730459302480,3.0,2520.4,2520.2,0.7701]
[1730459302810,6.96767,2520.4,2520.2,0.7701]
[1730459303838,3.96778,2520.3,2520.2,0.7701]
[1730459307346,3.96802,2520.2,2519.8,0.7921]
[1730459307630,3.96802,2520.2,2519.9,0.03742019]
[1730459311641,3.96778,2520.3,2519.9,0.03742019]
[1730459311802,6.96764,2520.4,2520.0,4.75963]
[1730459312003,6.96764,2520.4,2520.1,0.03724648]
[1730459312211,6.96764,2520.4,2520.2,0.7914]
[1730459312419,6.96764,2520.4,2520.3,0.03712657]
[1730459313717,3.96764,2520.4,2520.3,0.03712657]
[1730459316641,7.93509,2520.5,2520.3,0.03712657]
[1730459317145,3.96749,2520.5,2520.3,0.03712657]
[1730459319044,3.0,2520.5,2520.3,0.03712657]
[1730459320652,3.0,2520.6,2520.3,0.03712657]
[1730459320946,3.0,2520.6,2520.3,4.00487657]
[1730459321523,3.0,2520.7,2520.3,4.00487657]
[1730459322536,3.0,2520.6,2520.3,4.00487657]
[1730459322853,3.0,2520.7,2520.3,4.00481657]
[1730459323539,6.96716,2520.7,2520.3,4.00481657]
[1730459323750,6.96716,2520.7,2520.3,0.03712657]
[1730459324537,3.0,2520.7,2520.3,4.00487657]
[1730459325373,6.96716,2520.7,2520.3,4.00487657]
[1730459326568,6.96716,2520.7,2520.3,0.03712657]
[1730459330925,10.93442,2520.7,2520.3,0.03712657]
[1730459331241,6.96716,2520.7,2520.3,0.03712657]
[1730459331948,10.93446,2520.7,2520.3,0.03712657]
[1730459332314,6.96716,2520.7,2520.3,0.03712657]
[1730459333111,3.0,2520.5,2520.3,0.03712657]
[1730459335069,3.96732,2520.6,2520.3,0.03712657]
[1730459335070,3.0,2520.6,2520.3,0.03712657]
[1730459336970,6.96734,2520.6,2520.3,0.03712657]
[1730459340223,10.93473,2520.6,2520.3,0.03712657]
[1730459340448,3.96747,2520.5,2520.3,0.03712657]
[1730459340672,3.96757,2520.5,2520.3,0.03712657]
[1730459340854,3.96769,2520.4,2520.2,0.7914]
[1730459341865,7.9354,2520.4,2520.2,0.7914]
[1730459342022,3.96748,2520.5,2520.2,0.7914]
[1730459342729,3.96763,2520.4,2520.2,0.7914]
[1730459343143,3.96748,2520.5,2520.2,0.7914]
[1730459343463,7.93508,2520.5,2520.2,0.7914]
[1730459343627,3.96748,2520.5,2520.2,0.7914]
[1730459343829,7.93507,2520.5,2520.2,0.7914]
[1730459344145,7.93505,2520.5,2520.2,0.7914]
[1730459344357,3.96748,2520.5,2520.2,0.7914]
[1730459344527,7.93507,2520.5,2520.2,0.7914]
[1730459344857,7.93504,2520.5,2520.2,0.7914]
[1730459345164,3.96748,2520.5,2520.2,0.7914]
[1730459345869,3.96792,2520.3,2520.0,0.7888]
[1730459346022,1.81400647,2520.5,2520.0,0.7888]
[1730459346023,3.96796,2520.2,2520.0,0.7888]
[1730459346860,3.96763,2520.4,2520.0,4.75697]
[1730459348881,3.96747,2520.5,2520.1,3.96808]
[1730459349043,3.96747,2520.5,2520.2,0.7695]
[1730459349782,3.0,2520.5,2520.2,0.7695]
[1730459350487,3.0,2520.6,2520.3,3.96772]
[1730459350662,3.0,2520.6,2520.4,0.7695]
[1730459351372,3.96686,2520.9,2520.4,6.55111647]
[1730459351682,3.9666,2521.1,2520.7,0.7682]
[1730459352192,1.81400647,2521.3,2520.9,3.96673]
[1730459352193,3.96624,2521.3,2520.9,3.96673]
[1730459352554,3.96624,2521.3,2521.0,0.03920555]
[1730459352949,3.96624,2521.3,2521.1,0.8303]
[1730459353259,6.96624,2521.3,2521.2,0.03897298]
[1730459354158,3.0,2521.3,2521.2,0.03897298]
[1730459355961,6.9662,2521.3,2521.2,0.03897298]
[1730459361003,3.0,2521.3,2521.2,0.03897298]
[1730459361555,6.9662,2521.3,2521.2,0.03897298]
[1730459365900,8.78020647,2521.3,2521.2,0.03897298]
[1730459366800,3.96637,2521.2,2520.9,0.8038]
[1730459367406,3.96637,2521.2,2521.0,0.04537838]
[1730459368090,6.9662,2521.3,2521.0,0.04537838]
[1730459368510,3.96639,2521.2,2521.0,0.04537838]
[1730459369082,6.9662,2521.3,2521.0,0.04537838]
[1730459369496,10.93249,2521.3,2521.0,0.04537838]
[1730459370574,6.9662,2521.3,2521.0,0.04537838]
[1730459370774,3.96639,2521.2,2521.0,0.04537838]
[1730459371608,6.96622,2521.3,2521.0,0.04537838]
[1730459375882,3.96622,2521.3,2521.1,0.7667]
[1730459376184,3.96622,2521.3,2521.2,0.0451966]
[1730459385535,3.9659,2521.5,2521.2,0.0451966]
[1730459385838,3.9662,2521.3,2521.2,0.0451966]
[1730459386008,3.0,2521.4,2521.2,0.0451966]
[1730459386207,6.96611,2521.4,2521.2,0.0451966]
[1730459387630,3.9662,2521.3,2521.2,0.0451966]
[1730459398744,3.9662,2521.3,2520.9,0.7805]
[1730459398745,3.96637,2521.2,2520.9,0.7805]
[1730459400448,7.93285,2521.2,2520.9,0.7805]
[1730459400612,3.96637,2521.2,2520.9,0.7805]
[1730459401169,3.96624,2521.3,2520.9,4.74732]
[1730459402423,0.5169,2522.2,2521.5,3.96576]
[1730459402627,3.96502,2522.1,2521.7,0.7654]
[1730459402847,7.93009,2522.1,2521.7,0.7654]
[1730459403219,3.96502,2522.1,2521.7,0.7654]
[1730459403448,7.93005,2522.1,2521.7,0.7654]
[1730459403623,3.96512,2522.0,2521.7,0.7654]
[1730459404153,3.96495,2522.1,2521.7,4.73097]
[1730459404457,3.96495,2522.1,2521.7,0.7654]
[1730459404458,7.93005,2522.1,2521.7,0.7654]
[1730459404616,3.96495,2522.1,2521.7,0.7654]
[1730459404820,3.96511,2522.0,2521.7,0.7654]
[1730459406313,3.96526,2521.9,2521.7,0.7654]
[1730459406916,3.96573,2521.6,2521.3,0.8225]
[1730459407222,3.96587,2521.6,2521.3,0.8225]
[1730459407625,3.9659,2521.5,2521.3,0.8225]
[1730459408261,3.9659,2521.5,2521.1,0.7852]
[1730459408463,3.9659,2521.5,2521.1,1.48925485]
[1730459411255,3.96593,2521.5,2521.1,0.7852]
[1730459411460,3.96653,2521.1,2520.9,0.8235]
[1730459411663,3.96653,2521.1,2520.7,4.79064]
[1730459411956,4.48327,2521.2,2520.8,3.96697]
[1730459412325,4.48327,2521.2,2520.9,0.04512074]
[1730459412527,4.48332,2521.2,2520.8,3.96698]
[1730459412835,4.48332,2521.2,2520.9,0.04512074]
[1730459415124,0.5169,2521.4,2520.9,0.04512074]
[1730459415329,3.5169,2521.4,2520.9,0.04512074]
[1730459418743,7.48298,2521.4,2520.9,0.04512074]
[1730459419623,3.96627,2521.3,2520.9,0.04512074]
[1730459422526,7.48298,2521.4,2520.9,0.04512074]
[1730459422742,3.96628,2521.3,2520.9,0.04512074]
[1730459424051,3.96637,2521.2,2520.9,0.04512074]
[1730459426405,3.96654,2521.1,2520.9,0.04512074]
[1730459426739,3.96654,2521.1,2520.7,4.79061]
[1730459426940,3.96654,2521.1,2520.8,0.04536191]
[1730459427180,3.96654,2521.1,2520.7,4.79061]
[1730459427346,3.96699,2520.8,2520.7,0.8235]
[1730459427540,3.96699,2520.8,2520.5,0.7888]
[1730459432995,3.96726,2520.7,2520.5,0.7888]
[1730459434691,3.96762,2520.4,2520.3,0.757]
[1730459435001,3.96732,2520.6,2520.3,0.757]
[1730459435858,3.96749,2520.5,2520.3,0.757]
[1730459436057,3.96732,2520.6,2520.3,0.757]
[1730459436594,3.96685,2520.9,2520.6,0.7824]
[1730459436767,3.96685,2520.9,2520.7,1.81400647]
[1730459437972,3.96699,2520.8,2520.6,0.7824]
[1730459438570,3.96685,2520.9,2520.6,0.7824]
[1730459439499,7.93382,2520.9,2520.6,0.7824]
[1730459439964,3.96685,2520.9,2520.6,0.7824]
[1730459440391,7.93383,2520.9,2520.6,0.7824]
[1730459440598,3.96685,2520.9,2520.6,0.7824]
[1730459440889,3.96704,2520.8,2520.6,0.7824]
[1730459442111,3.96685,2520.9,2520.6,0.7824]
[1730459442467,3.96685,2520.9,2520.7,0.05458126]
[1730459447465,0.5169,2521.1,2520.7,0.05458126]
[1730459447702,3.96694,2520.9,2520.7,0.05458126]
[1730459448706,3.96699,2520.8,2520.7,0.05458126]
[1730459449493,6.96667,2521.0,2520.7,0.05458126]
[1730459449799,3.96685,2520.9,2520.7,0.05458126]
[1730459450314,3.96622,2521.3,2520.8,0.7614]
[1730459450639,3.9659,2521.5,2521.1,2.57540647]
[1730459450793,5.77935647,2521.9,2521.1,2.57540647]
[1730459450794,3.96554,2521.8,2521.3,5.78018647]
[1730459450993,3.96542,2521.8,2521.4,0.86448264]
[1730459451236,3.96565,2521.7,2521.4,0.86448264]
[1730459451542,0.5169,2521.9,2521.4,4.83045264]
[1730459451696,3.96533,2521.9,2521.5,1.81400647]
[1730459452091,3.96509,2522.1,2521.7,1.81400647]
[1730459452293,3.96509,2522.1,2521.8,0.7907]
[1730459452527,3.96509,2522.1,2521.8,0.84104451]
[1730459452834,3.96509,2522.1,2521.9,1.81400647]
[1730459453133,3.96509,2522.1,2522.0,0.05016782]
[1730459453524,3.96509,2522.1,2521.8,2.60470647]
[1730459453821,6.96509,2522.1,2521.9,0.05022931]
[1730459455644,3.96509,2522.1,2521.9,0.05022931]
[1730459456002,3.96475,2522.3,2521.9,0.05022931]
[1730459456199,3.96488,2522.2,2521.9,0.05022931]
[1730459459707,6.96449,2522.4,2522.1,1.81400647]
[1730459460223,3.96442,2522.5,2522.2,0.05004484]
[1730459460404,3.96456,2522.4,2522.2,0.05004484]
[1730459461042,3.96442,2522.5,2522.3,2.58980647]
[1730459461241,6.96418,2522.6,2522.4,0.04992189]
[1730459461541,3.96418,2522.6,2522.4,0.04992189]
[1730459461763,3.96413,2522.7,2522.4,0.04992189]
[1730459461764,4.48087,2522.8,2522.4,0.04992189]
[1730459461903,3.96381,2522.9,2522.6,1.81400647]
[1730459462251,3.96381,2522.9,2522.7,0.04925683]
[1730459462559,3.96394,2522.8,2522.7,0.04925683]
[1730459462703,3.96381,2522.9,2522.7,0.82055683]
[1730459462903,3.96355,2523.0,2522.7,2.58530647]
[1730459463238,3.96355,2523.0,2522.8,0.04918259]
[1730459463749,3.96369,2522.9,2522.8,0.04918259]
[1730459469071,3.96392,2522.8,2522.4,0.7932]
[1730459469474,3.96403,2522.7,2522.4,0.7932]
[1730459469677,3.96408,2522.7,2522.4,0.7932]
[1730459469880,7.92816,2522.7,2522.4,0.7932]
[1730459470066,3.96408,2522.7,2522.4,0.7932]
[1730459470262,4.48162,2522.3,2521.9,0.8138]
[1730459470462,3.9651,2522.0,2521.9,0.8138]
[1730459470780,3.9651,2522.0,2521.7,0.8138]
[1730459470981,3.96506,2522.1,2521.7,2.62780647]
[1730459471499,3.96506,2522.1,2521.7,6.59337647]
[1730459472521,3.96506,2522.1,2521.8,0.04660125]
[1730459472834,3.96506,2522.1,2521.7,4.77937]
[1730459474115,10.93008,2522.1,2522.0,0.04647825]
[1730459474423,3.96512,2522.0,2521.7,0.8138]
[1730459474899,3.96533,2521.9,2521.7,0.8138]
[1730459478104,3.96542,2521.8,2521.7,0.8138]
[1730459478306,3.96542,2521.8,2521.5,0.771]
[1730459478512,3.96538,2521.9,2521.5,0.771]
[1730459478721,3.96544,2521.8,2521.5,0.771]
[1730459479867,3.5169,2522.3,2521.5,8.42004995]
[1730459480069,3.96511,2522.0,2521.6,1.25247332]
[1730459480574,3.96532,2521.9,2521.6,1.25247332]
[1730459481737,3.96532,2521.9,2521.5,4.45418995]
[1730459482139,3.0,2522.1,2521.7,3.96556]
[1730459482644,0.5169,2522.3,2521.8,4.8483329]
[1730459482645,6.96471,2522.3,2521.8,4.8483329]
[1730459483442,3.9646,2522.4,2521.9,7.64840995]
[1730459483678,0.5169,2522.5,2522.1,0.7582]
[1730459483679,3.96438,2522.5,2522.1,0.7582]
[1730459483967,3.96426,2522.6,2522.1,0.7582]
[1730459484169,3.96433,2522.5,2522.1,4.72308]
[1730459487477,3.96433,2522.5,2522.2,0.04507739]
[1730459487772,4.48153,2522.3,2522.2,0.04507739]
[1730459488268,3.96495,2522.1,2521.8,0.8091]
[1730459488448,7.93002,2522.1,2521.8,0.8091]
[1730459488850,3.96495,2522.1,2521.8,0.8091]
[1730459489276,7.93001,2522.1,2521.8,0.8091]
[1730459489577,3.96525,2522.0,2521.8,0.8091]
[1730459489871,3.96518,2522.0,2521.8,0.8091]
[1730459491238,3.96528,2521.9,2521.6,0.8166]
[1730459493074,3.96511,2522.0,2521.6,4.78232]
[1730459493670,3.9653,2521.9,2521.6,0.8166]
[1730459493871,3.96511,2522.0,2521.6,0.8166]
[1730459494415,3.96511,2522.0,2521.6,4.78233]
[1730459495109,3.96511,2522.0,2521.6,5.99807788]
[1730459495274,3.96497,2522.1,2521.7,3.96557]
[1730459496814,3.96494,2522.1,2521.6,5.99805788]
[1730459496993,3.96494,2522.1,2521.8,0.7955]
[1730459498800,3.0,2522.3,2521.8,0.7955]
[1730459499006,3.96522,2522.0,2521.8,0.7955]
[1730459501224,7.93001,2522.1,2521.8,0.7955]
[1730459501514,3.96522,2522.0,2521.8,0.7955]
[1730459502143,3.96526,2521.9,2521.8,0.7955]
[1730459502655,3.96511,2522.0,2521.8,0.83955062]
[1730459502801,3.96526,2521.9,2521.8,0.83955062]
[1730459503141,3.96504,2522.1,2521.8,0.83955062]
[1730459507426,7.93009,2522.1,2521.8,0.83955062]
[1730459507865,3.96504,2522.1,2521.8,0.83955062]
[1730459510087,3.96479,2522.2,2521.8,4.80487062]
[1730459516191,3.96479,2522.2,2521.8,0.83955062]
[1730459516490,3.96502,2522.1,2521.8,0.83955062]
[1730459518183,3.9652,2522.0,2521.8,0.83955062]
[1730459520306,3.96493,2522.2,2521.9,1.81322696]
[1730459520474,3.96493,2522.2,2521.9,1.85587896]
[1730459520674,3.96497,2522.1,2521.9,0.042652]
[1730459520895,3.96481,2522.2,2521.9,0.042652]
[1730459521117,7.9297,2522.2,2521.9,0.042652]
[1730459521410,3.96481,2522.2,2521.9,0.042652]
[1730459522410,3.96501,2522.1,2521.9,0.042652]
[1730459528786,3.9651,2522.0,2521.9,0.042652]
[1730459530272,3.96498,2522.1,2521.9,0.042652]
[1730459530469,3.9651,2522.0,2521.9,0.042652]
[1730459531072,3.96579,2521.6,2521.4,0.85807274]
[1730459531568,3.96579,2521.6,2521.5,0.04284176]
[1730459533343,6.96579,2521.6,2521.5,0.04284176]
[1730459535985,6.96579,2521.6,2521.4,0.05947274]
[1730459536138,3.96589,2521.5,2521.4,0.05947274]
[1730459545454,3.96589,2521.5,2521.4,0.86207274]
[1730459546881,3.96514,2522.0,2521.6,3.96571]
[1730459547081,3.96505,2522.1,2521.7,6.92585796]
[1730459547402,3.96505,2522.1,2521.7,2.96029796]
[1730459547580,3.9651,2522.0,2521.7,2.96029796]
[1730459549706,3.9151,2522.0,2521.7,2.96029796]
[1730459550015,3.96501,2522.1,2521.8,0.6926008]
[1730459551775,7.9301,2522.1,2521.8,0.6926008]
[1730459552207,3.96501,2522.1,2521.8,0.6926008]
[1730459552708,7.93005,2522.1,2521.8,0.6926008]
[1730459553076,3.96501,2522.1,2521.8,0.6926008]
[1730459553276,3.5169,2522.3,2521.8,0.6926008]
[1730459553479,3.96506,2522.1,2521.8,0.6926008]
[1730459553682,3.96506,2522.1,2521.9,0.36528988]
[1730459555309,3.96506,2522.1,2521.8,0.6926008]
[1730459555521,3.96479,2522.2,2521.8,0.6926008]
[1730459555721,3.96479,2522.2,2521.9,0.8054]
[1730459556032,7.92971,2522.2,2521.9,0.8054]
[1730459556241,3.96497,2522.1,2521.9,0.8054]
[1730459556395,3.96482,2522.2,2521.9,1.54100387]
[1730459556814,7.92973,2522.2,2521.9,1.54100387]
[1730459557309,3.96482,2522.2,2521.9,1.54100387]
[1730459557519,3.9646,2522.4,2521.9,7.31941083]
[1730459557697,6.9646,2522.4,2522.0,1.19773016]
[1730459558307,3.96463,2522.4,2522.0,1.19773016]
[1730459558932,3.96464,2522.3,2522.0,1.19773016]
[1730459559944,3.96464,2522.3,2522.0,1.27702396]
[1730459560751,3.9648,2522.2,2522.0,1.27702396]
[1730459560920,1.81322696,2522.4,2521.9,0.8054]
[1730459561241,3.9651,2522.0,2521.9,0.8054]
[1730459562414,3.96507,2522.1,2521.9,0.8054]
[1730459564141,3.96486,2522.2,2521.9,0.8054]
[1730459564521,3.96496,2522.1,2521.9,0.8054]
[1730459567243,1.81322696,2522.4,2521.9,0.8054]
[1730459567423,3.96482,2522.2,2521.9,0.8054]
[1730459567842,7.92973,2522.2,2521.9,0.8054]
[1730459568957,3.96482,2522.2,2521.9,0.8054]
[1730459569128,3.96504,2522.1,2521.9,0.8054]
[1730459573697,3.96504,2522.1,2521.7,3.96556]
[1730459573698,3.9651,2522.0,2521.6,0.7665]
[1730459573850,3.9651,2522.0,2521.6,1.64226227]
[1730459574394,3.9651,2522.0,2521.6,5.60799227]
[1730459576849,3.96512,2522.0,2521.6,5.60799227]
[1730459577781,3.96502,2522.1,2521.7,3.96554]
[1730459578455,4.48162,2522.3,2521.8,3.96532]
[1730459578681,4.48162,2522.3,2521.9,0.753]
[1730459578682,3.96487,2522.2,2521.9,0.753]
[1730459579648,3.96495,2522.1,2521.9,0.753]
[1730459580175,3.96487,2522.2,2521.9,0.753]
[1730459580899,7.92977,2522.2,2521.9,0.753]
[1730459581065,3.96487,2522.2,2521.9,0.753]
[1730459581761,3.96495,2522.1,2521.9,0.753]
[1730459583262,3.96481,2522.2,2521.9,0.753]
[1730459583462,4.48157,2522.3,2521.9,0.753]
[1730459583463,8.44631,2522.3,2521.9,0.753]
[1730459583711,3.96482,2522.2,2521.9,0.753]
[1730459584811,3.96497,2522.1,2521.9,0.753]
[1730459585136,3.96482,2522.2,2521.9,0.753]
[1730459585426,7.92973,2522.2,2521.9,0.753]
[1730459585630,3.96482,2522.2,2521.9,0.753]
[1730459586800,0.5169,2522.3,2521.9,0.753]
[1730459587001,3.96466,2522.3,2521.9,5.19008]
[1730459587712,3.96463,2522.3,2521.9,1.22484]
[1730459588035,3.96485,2522.2,2521.9,0.753]
[1730459589230,3.96463,2522.3,2521.9,0.753]
[1730459590036,7.92937,2522.3,2521.9,0.753]
[1730459591314,3.96481,2522.2,2521.9,0.753]
[1730459595839,3.96463,2522.3,2521.9,4.79741207]
[1730459596044,3.96463,2522.3,2521.9,5.67369128]
[1730459596351,3.96463,2522.3,2521.9,5.59438921]
[1730459597045,6.9645,2522.4,2522.0,3.96508]
[1730459599043,3.96464,2522.3,2521.9,5.59449921]
[1730459600038,3.96464,2522.3,2521.9,5.59445921]
[1730459600982,3.96438,2522.5,2522.2,0.8085]
[1730459601190,0.014661,2522.7,2522.2,4.77316]
[1730459601370,3.96423,2522.6,2522.2,4.77316]
[1730459601946,3.978781,2522.7,2522.3,3.96461]
[1730459606882,3.978781,2522.7,2522.4,0.7936]
[1730459608185,3.978781,2522.7,2522.4,1.269421]
[1730459608354,0.014661,2522.7,2522.4,1.269421]
[1730459609268,3.978721,2522.7,2522.4,1.269421]
[1730459609786,0.014661,2522.7,2522.4,5.233891]
[1730459610289,0.014661,2522.7,2522.6,4.76226]
[1730459610455,0.014661,2522.7,2522.6,1.7183361]
[1730459611580,0.014661,2522.7,2522.6,5.6824961]
[1730459611792,0.014661,2522.7,2522.6,1.7183361]
[1730459611957,0.014661,2522.7,2522.6,0.7981]
[1730459612987,0.014661,2522.7,2522.6,4.76226]
[1730459613293,0.014661,2522.7,2522.6,0.7981]
[1730459613588,0.014661,2522.7,2522.6,4.76226]
[1730459614379,0.014661,2522.7,2522.6,0.7981]
[1730459614642,0.014661,2522.7,2522.6,1.2822838]
[1730459615496,0.014661,2522.7,2522.6,0.7981]
[1730459618649,0.014661,2522.7,2522.6,4.76226]
[1730459618810,0.014661,2522.7,2522.6,0.7981]
[1730459619841,0.014661,2522.7,2522.4,3.96444]
[1730459619994,0.014661,2522.7,2522.4,4.72174]
[1730459620195,0.014661,2522.7,2522.5,5.0142507]
[1730459621137,0.014661,2522.7,2522.5,1.0499507]
[1730459622038,0.014661,2522.7,2522.5,5.0141907]
[1730459625919,0.014661,2522.7,2522.5,5.0141907]
[1730459630071,0.014661,2522.7,2522.5,5.0141807]
[1730459630732,0.014661,2522.7,2522.6,4.78286]
[1730459630956,0.014661,2522.7,2522.6,5.95181496]
[1730459635238,0.014661,2522.7,2522.6,6.50181496]
[1730459635441,0.014661,2522.7,2522.6,6.58108237]
[1730459638440,0.5316,2524.1,2522.8,0.55]
[1730459638690,0.5316,2524.1,2523.9,1.81322696]
[1730459638841,0.5316,2524.1,2523.7,1.81322696]
[1730459639040,0.5316,2524.1,2523.8,3.96226]
[1730459639412,0.5316,2524.1,2523.8,3.96218]
[1730459639872,0.5316,2524.1,2523.6,0.8105]
[1730459640182,0.5316,2524.1,2523.7,3.96243]
[1730459640750,0.5316,2524.1,2523.8,3.96227]
[1730459641151,8.77472696,2524.3,2523.8,3.96227]
[1730459641152,3.5316,2524.3,2523.8,3.96227]
[1730459641355,0.5316,2524.3,2524.0,3.96196]
[1730459641556,3.96112,2524.6,2524.1,3.96172]
[1730459641557,4.49282,2524.5,2524.1,3.96172]
[1730459641853,0.5316,2524.5,2524.1,3.96172]
[1730459642363,0.5316,2524.5,2524.2,3.96159]
[1730459642885,3.5316,2524.5,2524.2,3.96159]
[1730459643383,0.5316,2524.5,2524.2,3.96155]
[1730459643551,3.0,2524.6,2524.2,3.96155]
[1730459643749,3.0,2524.6,2524.3,3.96141]
[1730459644375,3.96058,2524.9,2524.5,1.81322696]
[1730459644643,0.5316,2524.8,2524.3,6.55866696]
[1730459644796,0.5316,2524.8,2524.4,3.96132]
[1730459645283,0.5316,2524.8,2524.4,3.96133]
[1730459646282,0.5316,2524.8,2524.4,3.96124]
[1730459646487,4.49233,2524.8,2524.3,2.59732696]
[1730459646694,3.96089,2524.7,2524.3,5.77471696]
[1730459646983,4.49233,2524.8,2524.3,5.77471696]